bitfinex/quotes_ETHUSD_20240915
["timestamp","ask_amount","ask_price","bid_price","bid_amount"]
[1726398277075,0.55,2414.2,2413.8,2.4549771]
[1726398277419,0.55,2414.2,2414.0,0.14539862]
[1726398277738,0.55,2414.2,2413.8,2.4549771]
[1726398278005,0.55,2414.2,2414.1,0.14527072]
[1726398278209,0.55,2414.2,2413.8,2.4549771]
[1726398278711,0.55,2414.2,2413.9,0.14552653]
[1726398279126,0.55,2414.2,2413.8,2.4549771]
[1726398279332,3.55,2414.2,2414.0,0.14539862]
[1726398279507,3.55,2414.2,2413.8,2.4549771]
[1726398279508,0.98363334,2414.1,2413.8,2.4549771]
[1726398279698,0.43363334,2414.1,2413.8,2.4549771]
[1726398282410,0.55,2414.0,2413.8,2.4549771]
[1726398285933,0.55,2414.0,2413.8,0.0396771]
[1726398286136,0.55,2414.0,2413.9,0.14552653]
[1726398286337,0.94836333,2414.0,2413.8,0.0396771]
[1726398286501,3.55,2413.9,2413.8,0.0396771]
[1726398296154,5.8487,2413.9,2413.8,0.0396771]
[1726398296453,5.8487,2413.9,2413.3,2.4294]
[1726398296454,0.55,2413.8,2413.3,2.4294]
[1726398297125,0.43130502,2413.7,2413.4,0.1413006]
[1726398297447,0.55,2413.6,2413.3,2.4294]
[1726398297747,0.55,2413.6,2413.4,0.1413006]
[1726398297961,0.55,2413.6,2413.3,2.4294]
[1726398298111,0.55,2413.6,2413.5,0.14117264]
[1726398298312,0.55,2413.6,2413.3,2.4294]
[1726398298512,0.55,2413.6,2413.5,0.14117264]
[1726398298811,0.55,2413.6,2413.3,2.4294]
[1726398299224,0.55,2413.6,2413.4,0.1413006]
[1726398299555,0.55,2413.6,2413.3,2.4294]
[1726398299755,0.55,2413.6,2413.5,0.14117264]
[1726398300050,0.55,2413.6,2413.3,2.4294]
[1726398300553,0.55,2413.6,2413.4,0.1413006]
[1726398300925,0.55,2413.6,2413.3,2.4294]
[1726398301125,2.8487,2413.6,2413.5,0.14125227]
[1726398301354,2.8487,2413.6,2413.2,2.4294]
[1726398301355,3.0,2413.5,2413.2,2.4294]
[1726398302624,0.55,2413.4,2413.0,2.4690771]
[1726398302855,3.0,2413.5,2413.0,2.4690771]
[1726398302856,0.55,2413.2,2413.0,2.4690771]
[1726398305547,0.355,2413.3,2413.0,2.4690771]
[1726398306082,3.55,2413.2,2413.0,0.0396771]
[1726398306651,3.55,2413.4,2413.0,0.0396771]
[1726398307072,3.55,2413.4,2413.1,2.39316419]
[1726398307769,0.55,2413.2,2413.1,2.2514]
[1726398308155,0.55,2413.2,2413.1,2.39316419]
[1726398308356,0.94813615,2413.2,2413.1,2.39316419]
[1726398309095,0.94813615,2413.2,2413.1,0.14176419]
[1726398314303,0.55,2413.2,2413.1,0.14176419]
[1726398320028,5.9329,2413.2,2413.1,0.14176419]
[1726398320374,3.0,2413.1,2413.0,0.0396771]
[1726398324206,3.55,2413.1,2413.0,0.0396771]
[1726398324512,4.18642615,2413.1,2413.0,0.0396771]
[1726398326223,4.18642615,2413.1,2413.0,0.18183128]
[1726398326409,4.18642615,2413.1,2413.0,0.0396771]
[1726398326585,4.18642615,2413.1,2413.0,0.18183128]
[1726398326786,4.18642615,2413.1,2413.0,0.0396771]
[1726398327685,4.18642615,2413.1,2413.0,0.18183128]
[1726398327904,4.18642615,2413.1,2413.0,0.0396771]
[1726398328422,4.18642615,2413.1,2413.0,0.18183128]
[1726398328633,4.18642615,2413.1,2413.0,0.0396771]
[1726398331543,4.18642615,2413.1,2413.0,0.18183128]
[1726398339064,4.18642615,2413.1,2413.0,0.0396771]
[1726398345183,6.60822615,2413.1,2413.0,0.0396771]
[1726398362830,0.63642615,2413.1,2413.0,0.0396771]
[1726398363040,0.63877788,2413.3,2413.1,2.4736]
[1726398363041,0.43136154,2413.3,2413.1,2.4736]
[1726398363385,0.43136154,2413.3,2413.2,0.14205965]
[1726398363710,0.43136154,2413.3,2413.1,2.4736]
[1726398364386,0.43136154,2413.3,2413.2,0.14205965]
[1726398364708,0.43136154,2413.3,2413.2,2.4736]
[1726398365030,9.29,2414.0,2413.2,2.4736]
[1726398365227,0.43106516,2413.7,2413.2,2.4736]
[1726398365430,0.43106516,2413.7,2413.3,0.14183102]
[1726398366332,0.55,2413.6,2413.3,0.14183102]
[1726398367093,0.54805118,2413.5,2413.3,0.14183102]
[1726398367402,0.55,2413.4,2413.0,2.3713771]
[1726398367599,0.95980512,2413.4,2413.0,2.3713771]
[1726398367930,0.55,2413.5,2413.0,2.3713771]
[1726398371829,0.55,2413.6,2413.0,2.3713771]
[1726398372206,0.55,2413.6,2413.1,2.47373877]
[1726398372397,0.9684977,2413.6,2413.1,2.47373877]
[1726398374998,0.4184977,2413.6,2413.1,2.47373877]
[1726398375205,0.43106516,2413.7,2413.1,2.47373877]
[1726398375547,0.43106516,2413.7,2413.1,2.3317]
[1726398376000,0.43106516,2413.7,2413.3,2.3317]
[1726398380455,0.43106516,2413.7,2413.4,0.14161917]
[1726398380763,0.43106516,2413.7,2413.5,2.3317]
[1726398402086,0.43106516,2413.7,2413.0,0.0396771]
[1726398402087,0.43106516,2413.7,2413.1,2.3776]
[1726398402689,0.43106516,2413.7,2413.2,0.14174937]
[1726398403403,0.43106516,2413.7,2413.3,2.3776]
[1726398407177,0.43106516,2413.7,2413.4,0.14149761]
[1726398407396,0.43106516,2413.7,2413.3,2.3776]
[1726398409390,0.43106516,2413.7,2413.4,0.14149761]
[1726398409810,0.43106516,2413.7,2413.3,2.3776]
[1726398410169,0.43106516,2413.7,2413.4,0.14149761]
[1726398410557,0.43106516,2413.7,2413.3,2.3776]
[1726398410869,0.43106516,2413.7,2413.4,0.14149761]
[1726398411212,0.43106516,2413.7,2413.5,2.4785]
[1726398411510,7.29,2414.1,2413.1,0.87049058]
[1726398411511,0.55,2414.0,2413.7,2.4785]
[1726398411669,0.43108349,2414.1,2413.7,2.4785]
[1726398411868,0.43108349,2414.1,2413.8,0.14090198]
[1726398412269,0.43108349,2414.1,2413.7,2.4785]
[1726398412691,0.43108349,2414.1,2413.8,0.14090198]
[1726398413100,0.43108349,2414.1,2413.7,2.4785]
[1726398413299,0.43108349,2414.1,2413.9,0.14077405]
[1726398413615,0.43108349,2414.1,2413.7,2.4785]
[1726398413616,1.00982184,2414.1,2413.8,0.14090198]
[1726398413775,0.43108349,2414.1,2413.7,2.4785]
[1726398413979,0.43108349,2414.1,2413.9,0.14077405]
[1726398414179,0.43108349,2414.1,2413.8,0.14090198]
[1726398414377,0.43108349,2414.1,2414.0,0.14064614]
[1726398414378,0.98108349,2414.1,2414.0,0.14064614]
[1726398414579,0.98108349,2414.1,2413.7,2.4785]
[1726398414976,0.98108349,2414.1,2413.8,0.14090198]
[1726398415313,0.98108349,2414.1,2413.7,2.4785]
[1726398415786,1.61482184,2414.1,2413.8,0.14090198]
[1726398416173,1.61482184,2414.1,2413.7,2.4785]
[1726398416373,2.3563,2414.0,2413.7,2.4785]
[1726398416606,5.3563,2414.0,2413.8,0.14074482]
[1726398416790,5.3563,2414.0,2413.7,2.4785]
[1726398417592,5.3563,2414.0,2413.8,0.14074482]
[1726398417788,3.63373835,2413.9,2413.8,0.14074482]
[1726398418022,3.63373835,2413.9,2413.7,2.4785]
[1726398418283,3.63373835,2413.9,2413.8,0.14074482]
[1726398418755,3.63373835,2413.9,2413.7,2.4785]
[1726398418964,3.63373835,2413.9,2413.4,2.4785]
[1726398419329,3.63373835,2413.9,2413.5,0.14112865]
[1726398420467,0.55,2413.7,2413.5,0.14112865]
[1726398422260,3.0,2413.6,2413.5,0.14112865]
[1726398422638,3.0,2413.6,2413.2,2.4785]
[1726398422929,3.0,2413.6,2413.3,0.14143068]
[1726398424634,3.0,2413.6,2413.1,2.4785]
[1726398424976,3.69362603,2413.6,2413.2,0.14158381]
[1726398430904,3.0,2413.6,2413.2,0.14158381]
[1726398431058,0.55,2413.7,2413.3,2.3127]
[1726398431264,0.55,2413.7,2413.4,0.14140118]
[1726398431600,1.23436603,2413.7,2413.4,0.14140118]
[1726398440422,0.55,2413.7,2413.4,0.14140118]
[1726398442834,0.43095643,2413.8,2413.5,2.3127]
[1726398443206,0.43095643,2413.8,2413.6,0.14109922]
[1726398444521,0.43095643,2413.8,2413.5,2.3127]
[1726398444995,0.43095643,2413.8,2413.6,0.14109922]
[1726398445331,0.43095643,2413.8,2413.5,2.3127]
[1726398445829,0.43095643,2413.8,2413.6,0.14109922]
[1726398458198,2.79285643,2413.8,2413.6,0.14109922]
[1726398465553,0.43095643,2413.8,2413.6,0.14109922]
[1726398468539,1.01085207,2413.8,2413.6,0.14109922]
[1726398468740,2.368,2413.7,2413.6,0.14109922]
[1726398468979,2.368,2413.7,2413.3,2.4315]
[1726398469195,2.368,2413.7,2413.6,0.14106572]
[1726398469686,2.368,2413.7,2413.3,2.4315]
[1726398469840,2.368,2413.7,2413.4,0.14132164]
[1726398470353,2.64789564,2413.7,2413.4,0.14132164]
[1726398471284,2.368,2413.7,2413.4,0.14132164]
[1726398476901,5.368,2413.7,2413.4,0.14132164]
[1726398479158,5.368,2413.7,2413.1,2.4315]
[1726398479357,5.368,2413.7,2413.5,0.14119367]
[1726398479673,5.918,2413.7,2413.6,0.14106572]
[1726398479858,6.49789564,2413.7,2413.6,0.14106572]
[1726398480063,6.49789564,2413.7,2413.1,2.4315]
[1726398480366,6.49789564,2413.7,2413.2,0.1415776]
[1726398481293,0.69288521,2413.6,2413.2,0.1415776]
[1726398481562,5.918,2413.7,2413.2,0.1415776]
[1726398484571,3.55,2413.6,2413.2,0.1415776]
[1726398487092,3.98147717,2413.6,2413.2,0.1415776]
[1726398494830,3.98147717,2413.6,2413.3,2.4813]
[1726398495017,3.98147717,2413.6,2413.3,2.62283131]
[1726398495326,0.63494772,2413.5,2413.3,2.62283131]
[1726398495495,3.98147717,2413.6,2413.3,2.62283131]
[1726398502529,3.43147717,2413.6,2413.3,2.62283131]
[1726398502839,0.43147717,2413.6,2413.3,2.62283131]
[1726398508510,3.0,2413.5,2413.3,2.62283131]
[1726398508740,3.0,2413.5,2413.3,0.14153131]
[1726398509122,3.0,2413.5,2413.1,2.2528]
[1726398509649,3.0,2413.5,2413.2,0.14168444]
[1726398520975,3.59698425,2413.5,2413.2,0.14168444]
[1726398521138,0.55,2413.4,2413.2,0.14168444]
[1726398521343,0.55,2413.4,2413.0,0.0396771]
[1726398521577,0.55,2413.4,2413.3,0.14157532]
[1726398521742,0.55,2413.4,2413.1,0.1418313]
[1726398524274,3.57326614,2413.4,2413.1,0.1418313]
[1726398524634,2.8822,2413.4,2413.1,0.1418313]
[1726398524962,0.43350311,2413.3,2413.1,0.1418313]
[1726398534878,0.43350311,2413.3,2413.2,2.29]
[1726398535382,0.43350311,2413.3,2413.2,2.43172427]
[1726398535885,0.43350311,2413.3,2413.2,3.99178534]
[1726398536179,0.43350311,2413.3,2413.2,4.49026843]
[1726398536755,0.43350311,2413.3,2413.2,4.4901909]
[1726398537283,0.43350311,2413.3,2413.2,4.4901972]
[1726398537484,0.43350311,2413.3,2413.2,2.93020736]
[1726398537689,0.43350311,2413.3,2413.2,4.49014437]
[1726398538243,0.43350311,2413.3,2413.2,2.93020736]
[1726398538561,0.43350311,2413.3,2413.2,4.49013289]
[1726398539144,0.43350311,2413.3,2413.2,2.93020736]
[1726398539888,0.43350311,2413.3,2413.2,4.49009152]
[1726398540290,0.43350311,2413.3,2413.2,4.490098]
[1726398540788,0.43350311,2413.3,2413.2,2.93020736]
[1726398541886,0.43350311,2413.3,2413.2,4.4900487]
[1726398542293,0.43350311,2413.3,2413.2,2.93020736]
[1726398542693,0.43350311,2413.3,2413.2,4.48999397]
[1726398543151,0.43350311,2413.3,2413.2,2.93020736]
[1726398543597,0.43350311,2413.3,2413.2,4.48997083]
[1726398544130,0.43350311,2413.3,2413.2,2.93020736]
[1726398545207,0.43350311,2413.3,2413.2,2.43172427]
[1726398552451,0.43350311,2413.3,2413.2,0.14172427]
[1726398552661,0.43350311,2413.3,2413.0,3.28966768]
[1726398552814,0.43350311,2413.3,2413.1,1.70042288]
[1726398553021,0.43350311,2413.3,2413.1,0.14182294]
[1726398561006,5.9691,2413.2,2413.1,0.14182294]
[1726398590922,5.9691,2413.2,2413.0,0.0396771]
[1726398590923,0.55,2413.1,2413.0,0.0396771]
[1726398591157,3.55,2413.1,2413.0,0.0396771]
[1726398592261,3.55,2413.1,2412.6,2.4180771]
[1726398592570,4.23676451,2413.1,2412.7,0.14094507]
[1726398592970,0.55,2412.9,2412.7,0.14094507]
[1726398594374,0.55,2412.9,2412.7,0.09094507]
[1726398594582,0.55,2412.9,2412.7,0.13915666]
[1726398596159,1.06015758,2412.9,2412.7,0.13915666]
[1726398596842,3.55,2412.8,2412.7,0.13915666]
[1726398597037,3.55,2412.8,2412.4,2.4284]
[1726398597238,3.55,2412.8,2412.5,0.1395408]
[1726398597885,0.55,2412.8,2412.5,0.1395408]
[1726398598040,0.55,2412.9,2412.6,2.4284]
[1726398598567,0.55,2412.9,2412.7,0.13928469]
[1726398598790,1.23674113,2412.9,2412.7,0.13928469]
[1726398599588,1.23674113,2412.9,2412.4,2.4284]
[1726398600068,1.23674113,2412.9,2412.5,0.139545]
[1726398600494,2.4526,2412.8,2412.5,0.139545]
[1726398600669,3.55,2412.7,2412.5,0.139545]
[1726398600864,3.55,2412.7,2412.3,0.0396771]
[1726398600865,0.60026,2412.6,2412.3,0.0396771]
[1726398601098,0.55,2412.5,2412.4,0.13967097]
[1726398602181,3.0026,2412.5,2412.4,0.13967097]
[1726398602403,6.662886,2412.5,2412.4,0.13967097]
[1726398602580,6.0026,2412.5,2412.4,0.13967097]
[1726398603279,6.43389535,2412.5,2412.4,0.13967097]
[1726398606326,3.55,2412.4,2412.3,0.0396771]
[1726398606562,4.24838953,2412.4,2412.3,0.0396771]
[1726398606755,6.49958953,2412.4,2412.3,0.0396771]
[1726398607169,7.01214825,2412.4,2412.3,0.0396771]
[1726398607469,6.49958953,2412.4,2412.3,0.0396771]
[1726398608270,8.93327052,2412.4,2412.3,0.0396771]
[1726398608618,19.90180852,2412.4,2412.3,0.0396771]
[1726398609223,20.42137307,2412.4,2412.3,0.0396771]
[1726398609773,19.90180852,2412.4,2412.3,0.0396771]
[1726398610665,2.8012,2412.3,2411.6,0.0396771]
[1726398610882,2.8012,2412.3,2411.0,2.3049]
[1726398610883,2.2512,2412.0,2411.0,2.3049]
[1726398611075,0.55,2412.1,2411.0,2.3049]
[1726398611076,0.55,2411.7,2411.0,2.3049]
[1726398611265,0.55,2411.5,2411.1,0.1415445]
[1726398611449,0.55,2411.5,2411.0,2.3049]
[1726398612229,0.55,2411.6,2411.0,2.3049]
[1726398612430,0.55,2411.6,2411.1,0.1415445]
[1726398612752,0.55,2411.6,2411.0,2.3049]
[1726398613122,0.55,2411.6,2411.0,2.53935771]
[1726398613328,0.55,2411.6,2411.1,0.1415445]
[1726398613626,0.43124298,2411.5,2411.1,0.1415445]
[1726398613969,0.43124298,2411.5,2411.0,2.3049]
[1726398614468,0.43124298,2411.5,2411.1,0.1415445]
[1726398614664,0.43124298,2411.5,2411.0,2.3049]
[1726398615172,2.2512,2411.4,2410.9,0.0396771]
[1726398615382,5.2512,2411.4,2410.9,0.0396771]
[1726398616773,3.55,2411.3,2410.9,0.0396771]
[1726398618349,0.55,2411.1,2410.9,0.0396771]
[1726398618550,1.13012,2411.0,2410.9,0.0396771]
[1726398619251,1.13012,2411.0,2410.9,0.1818621]
[1726398620399,3.38132,2411.0,2410.9,0.1818621]
[1726398620602,6.38132,2411.0,2410.9,0.1818621]
[1726398620890,5.8012,2411.0,2410.9,0.0396771]
[1726398621595,5.8012,2411.0,2410.9,0.1818621]
[1726398621804,5.8012,2411.0,2410.9,0.0396771]
[1726398622088,6.38132,2411.0,2410.9,0.0396771]
[1726398623576,6.81547997,2411.0,2410.9,0.0396771]
[1726398623973,7.24879643,2411.0,2410.9,0.1818621]
[1726398626956,8.2876697,2411.0,2410.9,0.0396771]
[1726398627154,2.0,2410.5,2410.1,0.0396771]
[1726398627354,2.4235,2410.9,2410.1,0.0396771]
[1726398627355,3.0,2410.3,2410.1,0.0396771]
[1726398627593,3.0,2410.3,2410.1,2.4750771]
[1726398627989,2.4235,2410.3,2410.1,0.0396771]
[1726398628189,3.905,2410.2,2410.1,0.0396771]
[1726398628395,3.905,2410.2,2409.6,2.38710154]
[1726398628693,3.905,2410.2,2409.4,0.0396771]
[1726398628898,0.55,2410.0,2409.4,0.0396771]
[1726398629322,2.4235,2409.5,2409.4,0.0396771]
[1726398629524,3.55,2409.5,2409.4,0.0396771]
[1726398629810,0.55,2409.5,2409.4,0.0396771]
[1726398630159,0.55,2409.4,2408.5,0.0577493]
[1726398630357,0.905,2409.4,2408.5,0.0841641]
[1726398631159,0.355,2409.4,2408.5,0.0841641]
[1726398631358,3.0,2409.8,2408.7,2.4354]
[1726398631588,3.0,2409.8,2408.5,0.0841641]
[1726398631589,0.55,2409.8,2408.9,2.4354]
[1726398631811,3.55,2409.8,2408.9,2.67894]
[1726398632158,3.55,2409.8,2408.9,2.4618148]
[1726398632605,3.63285,2410.1,2408.9,2.4618148]
[1726398632809,0.55,2410.0,2408.9,2.4618148]
[1726398633199,2.4235,2410.7,2409.1,2.4354]
[1726398633410,2.4235,2410.7,2409.3,2.4354]
[1726398633411,0.44235,2410.6,2409.3,2.4354]
[1726398633623,0.44235,2410.6,2409.5,2.4354]
[1726398633920,0.44235,2410.6,2409.6,0.07149442]
[1726398634129,0.44235,2410.6,2409.7,2.4354]
[1726398634130,0.286585,2410.5,2409.7,2.4354]
[1726398634292,0.72018463,2410.5,2409.7,2.4354]
[1726398634480,0.72018463,2410.5,2409.8,0.07124331]
[1726398634920,0.72018463,2410.5,2409.9,2.4354]
[1726398635144,0.43359963,2410.5,2410.0,0.07099224]
[1726398636430,0.55,2410.4,2410.0,0.07099224]
[1726398638395,2.4235,2410.3,2410.0,0.07099224]
[1726398638688,3.55,2410.2,2409.6,0.0264148]
[1726398638919,4.22659834,2410.2,2409.7,0.07142296]
[1726398644803,0.55,2410.0,2409.7,0.07142296]
[1726398646295,2.3915,2409.9,2409.7,0.07142296]
[1726398646500,0.55,2409.7,2409.6,0.0264148]
[1726398646695,0.55,2409.7,2409.6,0.09795707]
[1726398646950,0.55,2409.7,2409.6,0.0264148]
[1726398648619,0.55,2409.7,2409.6,0.09795707]
[1726398648869,1.173565,2409.7,2409.6,0.0264148]
[1726398649045,1.173565,2409.7,2409.6,0.09795707]
[1726398649257,1.173565,2409.7,2409.6,0.0264148]
[1726398649730,1.173565,2409.7,2409.6,0.09828823]
[1726398654307,1.60792756,2409.7,2409.6,0.09828823]
[1726398655025,2.04141103,2409.7,2409.6,0.09828823]
[1726398656088,1.41784603,2409.7,2409.6,0.09828823]
[1726398665213,6.80934603,2409.7,2409.6,0.09828823]
[1726398667726,23.84018703,2409.7,2409.6,0.09828823]
[1726398667875,23.31618703,2409.7,2409.6,0.09828823]
[1726398668208,23.31618703,2409.7,2409.6,0.0264148]
[1726398668360,20.23362071,2409.7,2409.6,0.0264148]
[1726398668568,12.42602071,2409.7,2409.6,0.0264148]
[1726398668913,6.80934603,2409.7,2409.6,0.0264148]
[1726398669091,1.41784603,2409.7,2409.6,0.0264148]
[1726398669802,1.41784603,2409.7,2409.6,0.09826323]
[1726398670002,1.41784603,2409.7,2409.6,0.0264148]
[1726398670321,1.41784603,2409.7,2409.6,0.09826323]
[1726398670610,2.10766063,2409.7,2409.6,0.09826323]
[1726398672487,0.86784603,2409.7,2409.6,0.09826323]
[1726398672812,0.86784603,2409.7,2409.6,0.0264148]
[1726398674695,0.86784603,2409.7,2409.6,2.4442148]
[1726398675030,0.86784603,2409.7,2409.6,2.51605073]
[1726398675165,0.43436256,2409.7,2409.6,2.51605073]
[1726398676068,0.43436256,2409.7,2409.6,2.7676558]
[1726398679608,0.43436256,2409.7,2409.6,2.85064158]
[1726398680712,0.43436256,2409.7,2409.6,2.7676558]
[1726398682469,0.43436256,2409.7,2409.6,2.85063487]
[1726398682808,0.43196133,2410.2,2409.6,2.85063487]
[1726398683017,0.43415653,2410.1,2409.8,2.4178]
[1726398683308,0.43415653,2410.1,2409.8,2.50077803]
[1726398683531,0.43415653,2410.1,2410.0,2.4178]
[1726398684044,0.43415653,2410.1,2410.0,2.48893798]
[1726398684312,0.43415653,2410.1,2410.0,2.74612948]
[1726398689514,3.0,2410.4,2410.0,2.74612948]
[1726398689958,3.43411131,2410.4,2410.0,2.74612948]
[1726398690309,0.43411131,2410.4,2410.2,2.2895]
[1726398690514,0.43411131,2410.4,2410.3,0.23724711]
[1726398690819,0.43411131,2410.4,2410.3,0.32021341]
[1726398691252,0.43411131,2410.4,2410.3,2.2895]
[1726398716511,0.43411131,2410.4,2410.3,2.35973277]
[1726398717065,0.43411131,2410.4,2410.3,2.2895]
[1726398717704,0.43411131,2410.4,2410.3,2.35972653]
[1726398717998,0.43411131,2410.4,2410.3,2.2895]
[1726398718382,0.43411131,2410.4,2410.3,2.35972653]
[1726398718568,2.72571131,2410.4,2410.3,0.07022653]
[1726398718886,2.72571131,2410.4,2409.9,2.3575]
[1726398719066,5.72571131,2410.4,2410.3,0.07022446]
[1726398719275,5.72571131,2410.4,2409.9,2.3575]
[1726398719783,5.72571131,2410.4,2410.0,0.07060931]
[1726398719993,0.43411131,2410.4,2410.1,2.3575]
[1726398720306,0.43411131,2410.4,2410.2,0.07035828]
[1726398722484,0.43411131,2410.4,2410.2,0.15332303]
[1726398722808,0.43411131,2410.4,2410.2,0.07035828]
[1726398723027,0.43411131,2410.4,2410.2,0.40019317]
[1726398724202,2.72571131,2410.4,2410.2,0.07035828]
[1726398724593,2.72571131,2410.4,2410.0,0.87049058]
[1726398724927,2.72571131,2410.4,2410.1,1.63021792]
[1726398725138,2.72571131,2410.4,2410.1,0.07044288]
[1726398725827,2.72571131,2410.4,2410.1,0.53095539]
[1726398726395,2.72571131,2410.4,2410.1,0.07044288]
[1726398726596,2.72571131,2410.4,2409.9,3.22799058]
[1726398726905,2.72571131,2410.4,2410.0,1.63103891]
[1726398727102,2.72571131,2410.4,2410.0,0.07057673]
[1726398727304,2.72571131,2410.4,2410.1,1.56078344]
[1726398727506,2.72571131,2410.4,2410.1,0.07045121]
[1726398729925,2.99828244,2410.4,2410.1,0.07045121]
[1726398730239,3.0,2410.3,2410.1,0.07045121]
[1726398730645,3.0,2410.3,2410.2,0.07040892]
[1726398730830,3.0,2410.3,2409.9,0.87049058]
[1726398731149,3.0,2410.3,2410.0,1.63239447]
[1726398731308,3.0,2410.3,2410.0,0.07065995]
[1726398731512,0.43411131,2410.4,2410.0,0.07065995]
[1726398731712,2.3685,2410.3,2410.0,0.07065995]
[1726398732010,5.3685,2410.3,2410.0,0.07065995]
[1726398736668,5.3685,2410.3,2410.1,0.07055108]
[1726398737015,5.3685,2410.3,2409.9,3.17629058]
[1726398737214,5.3685,2410.3,2410.0,0.0706766]
[1726398739363,3.43411131,2410.4,2410.0,0.0706766]
[1726398740156,3.43411131,2410.4,2410.0,0.15364855]
[1726398741743,3.43411131,2410.4,2410.1,2.3058]
[1726398741959,0.43411131,2410.4,2410.2,1.56075482]
[1726398742238,0.43411131,2410.4,2410.3,0.0829626]
[1726398742461,0.43411131,2410.4,2410.3,0.1532377]
[1726398743280,0.43411131,2410.4,2410.3,1.71393362]
[1726398743584,0.43411131,2410.4,2410.3,2.28999886]
[1726398743792,0.43411131,2410.4,2410.3,4.01973716]
[1726398744072,0.43411131,2410.4,2410.3,4.89022774]
[1726398744284,2.3685,2411.0,2410.3,4.89022774]
[1726398744581,0.43408048,2410.6,2410.3,3.07872963]
[1726398744875,2.3685,2411.0,2410.3,3.07872963]
[1726398745243,0.43408139,2410.6,2410.3,3.07872963]
[1726398745578,2.3685,2411.0,2410.3,3.07872963]
[1726398745774,0.43408106,2410.6,2410.4,0.39492202]
[1726398746087,2.3685,2411.0,2410.5,0.0699742]
[1726398746234,0.43407672,2410.6,2410.5,0.0699742]
[1726398746684,2.3685,2411.0,2410.5,0.0699742]
[1726398746839,2.3685,2411.0,2410.6,0.0829523]
[1726398747040,2.3685,2411.0,2410.7,0.06972328]
[1726398747392,3.43407113,2410.9,2410.7,0.06972328]
[1726398747877,3.43407113,2410.9,2410.4,0.08295411]
[1726398748081,3.43407113,2410.9,2410.8,0.06959783]
[1726398748252,3.43407113,2410.9,2410.4,0.53954774]
[1726398748435,3.43407113,2410.9,2410.5,0.0699742]
[1726398751612,3.43407113,2410.9,2410.5,0.15292847]
[1726398751969,3.43407113,2410.9,2410.6,2.2655]
[1726398752309,3.43407113,2410.9,2410.7,0.06972328]
[1726398753993,0.43407113,2410.9,2410.7,0.06972328]
[1726398754218,0.43407113,2410.9,2410.7,0.15267449]
[1726398754905,0.43407113,2410.9,2410.7,0.39449194]
[1726398755395,2.4616,2411.2,2410.7,0.39449194]
[1726398755781,0.4340625,2410.9,2410.7,0.15267449]
[1726398756582,0.4340625,2410.9,2410.7,0.06972328]
[1726398758316,0.4340625,2410.9,2410.7,0.15267207]
[1726398760179,0.4340625,2410.9,2410.7,0.06972328]
[1726398760885,2.4616,2410.8,2410.7,0.06972328]
[1726398761323,2.4616,2410.8,2410.4,0.45659363]
[1726398761482,2.4616,2410.8,2410.7,0.0695631]
[1726398761683,2.4616,2410.8,2410.4,0.45659363]
[1726398761916,2.4616,2410.8,2410.7,0.0695631]
[1726398762080,3.0,2411.1,2410.5,0.35925842]
[1726398762286,3.0,2411.1,2410.7,0.0695631]
[1726398762516,3.0,2411.1,2410.6,2.33518856]
[1726398762702,3.0,2411.1,2410.8,0.06945429]
[1726398762896,3.0,2411.1,2410.7,0.06957766]
[1726398763115,3.0,2411.1,2410.9,0.06932678]
[1726398763324,3.0,2411.1,2410.8,0.06945221]
[1726398763504,3.0,2411.1,2411.0,0.06920135]
[1726398763682,3.0,2411.1,2410.9,0.06932678]
[1726398763885,3.0,2411.1,2411.0,0.06920135]
[1726398764197,3.0,2411.1,2410.6,2.2655]
[1726398764586,3.0,2411.1,2410.7,0.06957766]
[1726398766330,3.0,2411.1,2410.7,0.38603702]
[1726398769117,3.0,2411.1,2410.7,0.30308543]
[1726398773455,3.0,2411.1,2410.7,0.06957766]
[1726398773658,2.89566234,2411.2,2410.7,0.06957766]
[1726398773659,0.43406234,2411.2,2410.7,0.06957766]
[1726398773817,5.3259,2411.1,2410.5,2.2903]
[1726398774013,5.3259,2411.1,2410.6,0.38573434]
[1726398774240,5.3259,2411.1,2410.6,0.06965528]
[1726398780575,2.3259,2411.1,2410.6,0.06965528]
[1726398781683,2.75996234,2411.2,2410.7,2.2903]
[1726398781975,2.75996234,2411.2,2410.8,0.06941271]
[1726398782333,2.75996234,2411.2,2410.7,2.2903]
[1726398782566,2.75996234,2411.2,2410.9,0.06928728]
[1726398782763,2.75996234,2411.2,2410.8,0.06941271]
[1726398783088,2.75996234,2411.2,2410.9,0.06928728]
[1726398783230,2.75996234,2411.2,2410.7,2.2903]
[1726398783573,2.75996234,2411.2,2410.8,0.06941271]
[1726398783875,2.75996234,2411.2,2410.7,2.2903]
[1726398784166,2.75996234,2411.2,2410.8,0.06941271]
[1726398784584,2.75996234,2411.2,2410.5,3.16079058]
[1726398784739,2.75996234,2411.2,2410.9,0.06928728]
[1726398784945,2.75996234,2411.2,2410.5,3.47686964]
[1726398785270,2.75996234,2411.2,2410.6,1.56895601]
[1726398785473,2.75996234,2411.2,2410.7,0.06953816]
[1726398785783,2.75996234,2411.2,2410.5,3.47686964]
[1726398785945,2.75996234,2411.2,2410.8,0.06941271]
[1726398786145,2.75996234,2411.2,2410.6,2.04768827]
[1726398786146,2.75996234,2411.2,2410.6,0.47835613]
[1726398786370,2.75996234,2411.2,2410.9,0.06928728]
[1726398786542,2.75996234,2411.2,2410.6,0.87049058]
[1726398786936,2.75996234,2411.2,2410.7,1.96525952]
[1726398787229,2.75996234,2411.2,2410.7,0.46506074]
[1726398788377,2.75996234,2411.2,2410.8,2.4196]
[1726398788785,2.75996234,2411.2,2410.9,0.06928728]
[1726398789528,0.43406234,2411.2,2410.9,0.06928728]
[1726398795345,0.43406234,2411.2,2410.9,0.44477732]
[1726398795529,0.43406234,2411.2,2411.0,0.0829424]
[1726398796002,0.43406234,2411.2,2411.1,0.0690198]
[1726398796543,0.43406234,2411.2,2411.1,4.05939974]
[1726398796731,0.43406234,2411.2,2411.1,4.05939447]
[1726398796899,0.43406234,2411.2,2411.1,4.72889538]
[1726398797344,0.43406234,2411.2,2411.1,3.15812071]
[1726398797506,0.43406234,2411.2,2411.1,4.72879719]
[1726398797699,2.4172,2411.6,2411.1,4.72879719]
[1726398797905,2.4172,2411.6,2411.2,0.08293363]
[1726398797906,0.4340199,2411.5,2411.2,0.08293363]
[1726398798121,3.4340199,2411.5,2411.2,0.08293363]